[Event "Titled Tuesday Blitz July 25 Early 2023"]
[White "Osinovsky, Stepan"]
[Black "Mei, Austin"]
[WhiteFideId "4157354"]
[BlackFideId "30948479"]
[WhiteElo "2342"]
[BlackElo "2483"]
[Result "0-1"]
[Round "10"]
[TimeControl "180+2"]
[Date "2023.07.25"]
[WhiteClock "0:00:00"]
[BlackClock "0:00:45"]
[Board "114"]

1. Nf3 {[%clk 0:02:52]}  Nf6 {[%clk 0:02:58]} 2. g3 {[%clk 0:02:53]}  g6 {[%clk 0:02:58]} 3. Bg2 {[%clk 0:02:54]}  Bg7 {[%clk 0:02:59]} 4. O-O {[%clk 0:02:55]}  O-O {[%clk 0:03:00]} 5. d3 {[%clk 0:02:56]}  Nc6 {[%clk 0:02:57]} 6. e4 {[%clk 0:02:55]}  e5 {[%clk 0:02:57]} 7. c3 {[%clk 0:02:54]}  d6 {[%clk 0:02:55]} 8. Nbd2 {[%clk 0:02:52]}  Nh5 {[%clk 0:02:53]} 9. Kh1 {[%clk 0:02:46]}  Qe8 {[%clk 0:02:53]} 10. Nc4 {[%clk 0:02:39]}  f5 {[%clk 0:02:52]} 11. exf5 {[%clk 0:02:23]}  gxf5 {[%clk 0:02:51]} 12. d4 {[%clk 0:02:14]}  e4 {[%clk 0:02:51]} 13. d5 {[%clk 0:02:14]}  exf3 {[%clk 0:02:50]} 14. Bxf3 {[%clk 0:02:13]}  Nf6 {[%clk 0:02:40]} 15. dxc6 {[%clk 0:02:08]}  bxc6 {[%clk 0:02:41]} 16. Bf4 {[%clk 0:01:16]}  Be6 {[%clk 0:02:40]} 17. Qd3 {[%clk 0:00:23]}  Qf7 {[%clk 0:02:38]} 18. Na5 {[%clk 0:00:20]}  c5 {[%clk 0:02:00]} 19. c4 {[%clk 0:00:16]}  Rae8 {[%clk 0:01:56]} 20. Rae1 {[%clk 0:00:15]}  Ne4 {[%clk 0:01:49]} 21. b3 {[%clk 0:00:15]}  Bd4 {[%clk 0:01:46]} 22. Re2 {[%clk 0:00:14]}  Qg6 {[%clk 0:01:42]} 23. Nc6 {[%clk 0:00:14]}  Bg7 {[%clk 0:01:29]} 24. Kg2 {[%clk 0:00:13]}  Bd7 {[%clk 0:01:29]} 25. Nxa7 {[%clk 0:00:12]}  Ng5 {[%clk 0:01:27]} 26. Bd5+ {[%clk 0:00:11]}  Kh8 {[%clk 0:01:27]} 27. Rfe1 {[%clk 0:00:10]}  Ne6 {[%clk 0:01:23]} 28. Bc1 {[%clk 0:00:09]}  Nd4 {[%clk 0:01:02]} 29. Rxe8 {[%clk 0:00:08]}  Rxe8 {[%clk 0:01:03]} 30. Rxe8+ {[%clk 0:00:08]}  Bxe8 {[%clk 0:01:04]} 31. Be3 {[%clk 0:00:07]}  Bd7 {[%clk 0:00:58]} 32. Bxd4 {[%clk 0:00:07]}  cxd4 {[%clk 0:00:57]} 33. Nc6 {[%clk 0:00:07]}  Qf6 {[%clk 0:00:55]} 34. a4 {[%clk 0:00:07]}  h5 {[%clk 0:00:53]} 35. a5 {[%clk 0:00:05]}  Bc8 {[%clk 0:00:53]} 36. b4 {[%clk 0:00:02]}  h4 {[%clk 0:00:51]} 37. b5 {[%clk 0:00:02]}  h3+ {[%clk 0:00:50]} 38. Kxh3 {[%clk 0:00:01]}  f4+ {[%clk 0:00:51]} 39. Kg2 {[%clk 0:00:01]}  Bf5 {[%clk 0:00:47]} 40. Qf3 {[%clk 0:00:00]}  d3 {[%clk 0:00:45]} 0-1


[Site "https://www.chess.com"]

[Event "Titled Tuesday Blitz July 25 Early 2023"]
[White "MateoReyes"]
[Black "Prydun, Andriy"]
[BlackFideId "14145898"]
[WhiteElo "2482"]
[BlackElo "2333"]
[Result "0-1"]
[Round "10"]
[TimeControl "180+2"]
[Date "2023.07.25"]
[WhiteClock "0:00:53"]
[BlackClock "0:00:10"]
[Board "115"]

1. Nf3 {[%clk 0:03:00]}  Nf6 {[%clk 0:02:59]} 2. d4 {[%clk 0:03:00]}  d5 {[%clk 0:02:58]} 3. c4 {[%clk 0:03:00]}  c6 {[%clk 0:02:52]} 4. Nc3 {[%clk 0:03:00]}  e6 {[%clk 0:02:49]} 5. Bg5 {[%clk 0:02:57]}  h6 {[%clk 0:02:47]} 6. Bxf6 {[%clk 0:02:57]}  gxf6 {[%clk 0:02:46]} 7. e3 {[%clk 0:02:57]}  a6 {[%clk 0:02:44]} 8. cxd5 {[%clk 0:02:56]}  exd5 {[%clk 0:02:42]} 9. g3 {[%clk 0:02:56]}  Be7 {[%clk 0:02:39]} 10. Bg2 {[%clk 0:02:56]}  Nd7 {[%clk 0:02:31]} 11. O-O {[%clk 0:02:55]}  Nf8 {[%clk 0:02:30]} 12. Qc2 {[%clk 0:02:53]}  Bg4 {[%clk 0:02:08]} 13. h3 {[%clk 0:02:48]}  Bh5 {[%clk 0:02:07]} 14. Rfe1 {[%clk 0:02:40]}  Ne6 {[%clk 0:02:07]} 15. Nh4 {[%clk 0:02:38]}  Qd7 {[%clk 0:02:03]} 16. Kh2 {[%clk 0:02:35]}  Ng5 {[%clk 0:01:51]} 17. f4 {[%clk 0:02:18]}  Ne6 {[%clk 0:01:47]} 18. g4 {[%clk 0:02:17]}  Bxg4 {[%clk 0:01:41]} 19. hxg4 {[%clk 0:02:16]}  h5 {[%clk 0:01:42]} 20. g5 {[%clk 0:02:03]}  fxg5 {[%clk 0:01:42]} 21. Nf5 {[%clk 0:01:56]}  O-O-O {[%clk 0:01:38]} 22. Nxd5 {[%clk 0:01:50]}  Bc5 {[%clk 0:01:14]} 23. dxc5 {[%clk 0:01:47]}  cxd5 {[%clk 0:01:04]} 24. c6 {[%clk 0:01:45]}  bxc6 {[%clk 0:00:50]} 25. Qa4 {[%clk 0:01:43]}  Nc5 {[%clk 0:00:38]} 26. Qa5 {[%clk 0:01:42]}  Nb7 {[%clk 0:00:36]} 27. Qxa6 {[%clk 0:01:41]}  Qxf5 {[%clk 0:00:35]} 28. Qxc6+ {[%clk 0:01:40]}  Kb8 {[%clk 0:00:35]} 29. Rac1 {[%clk 0:01:33]}  Rd7 {[%clk 0:00:26]} 30. Rc3 {[%clk 0:01:27]}  gxf4 {[%clk 0:00:23]} 31. exf4 {[%clk 0:01:14]}  Qxf4+ {[%clk 0:00:14]} 32. Kg1 {[%clk 0:01:12]}  Qd4+ {[%clk 0:00:13]} 33. Kh1 {[%clk 0:01:11]}  Qh4+ {[%clk 0:00:13]} 34. Kg1 {[%clk 0:01:07]}  Qxe1+ {[%clk 0:00:13]} 35. Kh2 {[%clk 0:01:07]}  Qe5+ {[%clk 0:00:14]} 36. Kh1 {[%clk 0:01:06]}  Rc7 {[%clk 0:00:14]} 37. Qb5 {[%clk 0:01:01]}  Rxc3 {[%clk 0:00:13]} 38. bxc3 {[%clk 0:01:01]}  Rd8 {[%clk 0:00:12]} 39. c4 {[%clk 0:01:00]}  Qe1+ {[%clk 0:00:08]} 40. Kh2 {[%clk 0:00:59]}  Qh4+ {[%clk 0:00:08]} 41. Kg1 {[%clk 0:00:58]}  Qxc4 {[%clk 0:00:09]} 42. Qb6 {[%clk 0:00:55]}  Qc5+ {[%clk 0:00:09]} 43. Qxc5 {[%clk 0:00:53]}  Nxc5 {[%clk 0:00:10]} 0-1


[Site "https://www.chess.com"]

[Event "Titled Tuesday Blitz July 25 Early 2023"]
[White "arturdailima"]
[Black "UNSTOPPABLE_LEGEND"]
[WhiteElo "2333"]
[BlackElo "2459"]
[Result "1/2-1/2"]
[Round "10"]
[TimeControl "180+2"]
[Date "2023.07.25"]
[WhiteClock "0:00:30"]
[BlackClock "0:00:41"]
[Board "116"]

1. e4 {[%clk 0:03:00]}  d6 {[%clk 0:02:40]} 2. d4 {[%clk 0:02:59]}  g6 {[%clk 0:02:41]} 3. Nc3 {[%clk 0:03:00]}  Bg7 {[%clk 0:02:42]} 4. Nf3 {[%clk 0:03:00]}  Nf6 {[%clk 0:02:41]} 5. Be2 {[%clk 0:03:00]}  O-O {[%clk 0:02:42]} 6. h3 {[%clk 0:02:59]}  e5 {[%clk 0:02:41]} 7. O-O {[%clk 0:02:57]}  exd4 {[%clk 0:02:37]} 8. Nxd4 {[%clk 0:02:57]}  Re8 {[%clk 0:02:38]} 9. Bf3 {[%clk 0:02:55]}  Nbd7 {[%clk 0:02:38]} 10. Re1 {[%clk 0:02:51]}  Ne5 {[%clk 0:02:38]} 11. Be2 {[%clk 0:02:49]}  Bd7 {[%clk 0:02:22]} 12. f4 {[%clk 0:02:45]}  Nc6 {[%clk 0:02:22]} 13. Nxc6 {[%clk 0:02:44]}  bxc6 {[%clk 0:02:23]} 14. Bf3 {[%clk 0:02:39]}  Rb8 {[%clk 0:02:23]} 15. Qd3 {[%clk 0:02:37]}  c5 {[%clk 0:02:21]} 16. b3 {[%clk 0:02:36]}  Qe7 {[%clk 0:02:12]} 17. Bd2 {[%clk 0:02:31]}  Be6 {[%clk 0:02:03]} 18. Rad1 {[%clk 0:02:14]}  Nd7 {[%clk 0:01:57]} 19. Nd5 {[%clk 0:02:11]}  Qd8 {[%clk 0:01:55]} 20. c4 {[%clk 0:02:05]}  Nb6 {[%clk 0:01:49]} 21. Bc3 {[%clk 0:02:04]}  Nxd5 {[%clk 0:01:44]} 22. cxd5 {[%clk 0:02:02]}  Bd7 {[%clk 0:01:43]} 23. Bxg7 {[%clk 0:01:58]}  Kxg7 {[%clk 0:01:44]} 24. e5 {[%clk 0:01:56]}  Qh4 {[%clk 0:01:40]} 25. Qe3 {[%clk 0:01:32]}  Qg3 {[%clk 0:01:37]} 26. Bg4 {[%clk 0:01:21]}  Qxe3+ {[%clk 0:01:33]} 27. Rxe3 {[%clk 0:01:21]}  Bxg4 {[%clk 0:01:32]} 28. hxg4 {[%clk 0:01:21]}  Kf8 {[%clk 0:01:21]} 29. Kf2 {[%clk 0:01:19]}  a5 {[%clk 0:01:17]} 30. Re4 {[%clk 0:01:18]}  Rb4 {[%clk 0:01:15]} 31. Rde1 {[%clk 0:01:15]}  Kg7 {[%clk 0:01:03]} 32. Kf3 {[%clk 0:01:12]}  h6 {[%clk 0:01:00]} 33. g3 {[%clk 0:01:11]}  Kf8 {[%clk 0:00:59]} 34. exd6 {[%clk 0:00:53]}  Rbxe4 {[%clk 0:00:58]} 35. Rxe4 {[%clk 0:00:54]}  cxd6 {[%clk 0:00:55]} 36. Rxe8+ {[%clk 0:00:43]}  Kxe8 {[%clk 0:00:55]} 37. Ke4 {[%clk 0:00:43]}  Kd7 {[%clk 0:00:54]} 38. Kd3 {[%clk 0:00:43]}  Kc7 {[%clk 0:00:52]} 39. Kc4 {[%clk 0:00:44]}  Kb6 {[%clk 0:00:52]} 40. a4 {[%clk 0:00:40]}  Ka6 {[%clk 0:00:51]} 41. Kd3 {[%clk 0:00:40]}  Kb6 {[%clk 0:00:46]} 42. Kc4 {[%clk 0:00:40]}  f6 {[%clk 0:00:44]} 43. Kd3 {[%clk 0:00:29]}  Kc7 {[%clk 0:00:43]} 44. Kc4 {[%clk 0:00:29]}  Kb6 {[%clk 0:00:42]} 45. Kd3 {[%clk 0:00:29]}  Ka6 {[%clk 0:00:41]} 46. Kc4 {[%clk 0:00:30]}  Kb6 {[%clk 0:00:41]} 1/2-1/2


[Site "https://www.chess.com"]

[Event "Titled Tuesday Blitz July 25 Early 2023"]
[White "Romero Arzuaga, Yudel"]
[Black "Kopczynski, Michal"]
[WhiteFideId "3521010"]
[BlackFideId "1124200"]
[WhiteElo "2309"]
[BlackElo "2454"]
[Result "0-1"]
[Round "10"]
[TimeControl "180+2"]
[Date "2023.07.25"]
[WhiteClock "0:00:06"]
[BlackClock "0:00:11"]
[Board "117"]

1. d4 {[%clk 0:03:00]}  Nf6 {[%clk 0:02:59]} 2. Nf3 {[%clk 0:03:00]}  g6 {[%clk 0:03:00]} 3. c4 {[%clk 0:03:00]}  Bg7 {[%clk 0:03:01]} 4. Nc3 {[%clk 0:03:01]}  d6 {[%clk 0:03:01]} 5. e4 {[%clk 0:03:01]}  O-O {[%clk 0:03:02]} 6. Be2 {[%clk 0:03:02]}  e5 {[%clk 0:03:02]} 7. O-O {[%clk 0:03:02]}  Nc6 {[%clk 0:03:03]} 8. d5 {[%clk 0:03:03]}  Ne7 {[%clk 0:03:03]} 9. b4 {[%clk 0:03:04]}  Ne8 {[%clk 0:03:04]} 10. c5 {[%clk 0:03:00]}  f5 {[%clk 0:03:04]} 11. Nd2 {[%clk 0:02:58]}  f4 {[%clk 0:03:04]} 12. f3 {[%clk 0:02:56]}  g5 {[%clk 0:03:05]} 13. Nc4 {[%clk 0:02:55]}  h5 {[%clk 0:03:04]} 14. Ba3 {[%clk 0:02:54]}  Rf6 {[%clk 0:03:04]} 15. b5 {[%clk 0:02:53]}  Rg6 {[%clk 0:03:03]} 16. b6 {[%clk 0:02:29]}  axb6 {[%clk 0:03:02]} 17. cxd6 {[%clk 0:02:29]}  Nxd6 {[%clk 0:02:58]} 18. Bxd6 {[%clk 0:02:18]}  cxd6 {[%clk 0:02:58]} 19. Qb3 {[%clk 0:02:18]}  g4 {[%clk 0:02:51]} 20. Nxb6 {[%clk 0:02:02]}  gxf3 {[%clk 0:02:42]} 21. Bxf3 {[%clk 0:02:01]}  Ra5 {[%clk 0:02:33]} 22. Nxc8 {[%clk 0:01:59]}  Qxc8 {[%clk 0:02:28]} 23. Rac1 {[%clk 0:01:55]}  Rc5 {[%clk 0:02:27]} 24. Ne2 {[%clk 0:01:56]}  h4 {[%clk 0:02:26]} 25. Qb4 {[%clk 0:01:37]}  h3 {[%clk 0:02:22]} 26. Rxc5 {[%clk 0:01:24]}  dxc5 {[%clk 0:02:23]} 27. Qc4 {[%clk 0:01:22]}  hxg2 {[%clk 0:02:22]} 28. Rf2 {[%clk 0:01:06]}  Kh8 {[%clk 0:02:17]} 29. Rxg2 {[%clk 0:00:59]}  Rxg2+ {[%clk 0:02:17]} 30. Bxg2 {[%clk 0:01:00]}  Qg4 {[%clk 0:02:13]} 31. Kf2 {[%clk 0:01:00]}  Qh4+ {[%clk 0:02:03]} 32. Kf1 {[%clk 0:00:59]}  Qxh2 {[%clk 0:01:58]} 33. d6 {[%clk 0:00:57]}  Nc6 {[%clk 0:01:56]} 34. Qf7 {[%clk 0:00:53]}  Qh6 {[%clk 0:01:40]} 35. d7 {[%clk 0:00:47]}  Qf6 {[%clk 0:01:35]} 36. Qh5+ {[%clk 0:00:43]}  Bh6 {[%clk 0:01:29]} 37. Nc3 {[%clk 0:00:39]}  Qd6 {[%clk 0:01:21]} 38. Nd5 {[%clk 0:00:30]}  Kg7 {[%clk 0:01:17]} 39. Bh3 {[%clk 0:00:24]}  c4 {[%clk 0:00:55]} 40. Qe8 {[%clk 0:00:22]}  Bg5 {[%clk 0:00:43]} 41. Be6 {[%clk 0:00:21]}  Qf8 {[%clk 0:00:27]} 42. Qh5 {[%clk 0:00:15]}  Bd8 {[%clk 0:00:23]} 43. Qg4+ {[%clk 0:00:15]}  Kh6 {[%clk 0:00:19]} 44. Bf5 {[%clk 0:00:14]}  Qf7 {[%clk 0:00:12]} 45. Qh3+ {[%clk 0:00:07]}  Qh5 {[%clk 0:00:12]} 46. Qc3 {[%clk 0:00:05]}  Qd1+ {[%clk 0:00:10]} 47. Kf2 {[%clk 0:00:04]}  Qd4+ {[%clk 0:00:10]} 48. Kf3 {[%clk 0:00:03]}  Qxc3+ {[%clk 0:00:10]} 49. Nxc3 {[%clk 0:00:04]}  Nd4+ {[%clk 0:00:10]} 50. Kg4 {[%clk 0:00:03]}  b5 {[%clk 0:00:07]} 51. Nxb5 {[%clk 0:00:03]}  Nxb5 {[%clk 0:00:06]} 52. Be6 {[%clk 0:00:02]}  c3 {[%clk 0:00:06]} 53. Kf3 {[%clk 0:00:02]}  Nd4+ {[%clk 0:00:06]} 54. Kf2 {[%clk 0:00:01]}  Nxe6 {[%clk 0:00:07]} 55. Ke2 {[%clk 0:00:02]}  Nc5 {[%clk 0:00:07]} 56. Kd1 {[%clk 0:00:02]}  Nxd7 {[%clk 0:00:07]} 57. Kc2 {[%clk 0:00:02]}  Nc5 {[%clk 0:00:07]} 58. Kxc3 {[%clk 0:00:03]}  Nxe4+ {[%clk 0:00:08]} 59. Kc4 {[%clk 0:00:03]}  Nd6+ {[%clk 0:00:09]} 60. Kd5 {[%clk 0:00:04]}  f3 {[%clk 0:00:09]} 61. Kxd6 {[%clk 0:00:04]}  f2 {[%clk 0:00:10]} 62. Kxe5 {[%clk 0:00:05]}  f1=Q {[%clk 0:00:10]} 63. Ke6 {[%clk 0:00:05]}  Qa6+ {[%clk 0:00:10]} 64. Kd7 {[%clk 0:00:06]}  Qxa2 {[%clk 0:00:11]} 0-1


[Site "https://www.chess.com"]

[Event "Titled Tuesday Blitz July 25 Early 2023"]
[White "Vemparala, Nikash"]
[Black "Ladan, Nicholas"]
[WhiteFideId "30960967"]
[BlackFideId "30918855"]
[WhiteElo "2280"]
[BlackElo "2447"]
[Result "1-0"]
[Round "10"]
[TimeControl "180+2"]
[Date "2023.07.25"]
[WhiteClock "0:00:25"]
[BlackClock "0:00:00"]
[Board "120"]

1. e4 {[%clk 0:03:00]}  b6 {[%clk 0:03:00]} 2. d4 {[%clk 0:02:58]}  Bb7 {[%clk 0:03:00]} 3. Nc3 {[%clk 0:02:57]}  e6 {[%clk 0:02:59]} 4. f3 {[%clk 0:02:57]}  Bb4 {[%clk 0:02:55]} 5. Ne2 {[%clk 0:02:56]}  d5 {[%clk 0:02:54]} 6. exd5 {[%clk 0:02:47]}  Qxd5 {[%clk 0:02:50]} 7. a3 {[%clk 0:02:44]}  Bxc3+ {[%clk 0:02:49]} 8. Nxc3 {[%clk 0:02:44]}  Qh5 {[%clk 0:02:49]} 9. Be3 {[%clk 0:02:41]}  Nf6 {[%clk 0:02:43]} 10. Qd2 {[%clk 0:02:40]}  Nd5 {[%clk 0:02:37]} 11. Nxd5 {[%clk 0:02:36]}  Qxd5 {[%clk 0:02:38]} 12. c4 {[%clk 0:02:33]}  Qd7 {[%clk 0:02:32]} 13. Be2 {[%clk 0:02:29]}  O-O {[%clk 0:02:31]} 14. Kf1 {[%clk 0:02:27]}  Rd8 {[%clk 0:02:28]} 15. Kf2 {[%clk 0:02:26]}  c5 {[%clk 0:02:24]} 16. Rhd1 {[%clk 0:02:23]}  Nc6 {[%clk 0:02:18]} 17. dxc5 {[%clk 0:02:18]}  Qxd2 {[%clk 0:02:17]} 18. Rxd2 {[%clk 0:02:19]}  Rxd2 {[%clk 0:02:16]} 19. Bxd2 {[%clk 0:02:19]}  bxc5 {[%clk 0:02:16]} 20. Be3 {[%clk 0:02:17]}  Nd4 {[%clk 0:02:11]} 21. Rd1 {[%clk 0:02:14]}  e5 {[%clk 0:02:08]} 22. Bxd4 {[%clk 0:02:08]}  cxd4 {[%clk 0:01:54]} 23. Bd3 {[%clk 0:02:02]}  g6 {[%clk 0:01:46]} 24. b4 {[%clk 0:02:01]}  f5 {[%clk 0:01:45]} 25. c5 {[%clk 0:02:00]}  Rc8 {[%clk 0:01:35]} 26. Re1 {[%clk 0:01:51]}  Re8 {[%clk 0:01:29]} 27. Bc4+ {[%clk 0:01:49]}  Kg7 {[%clk 0:01:28]} 28. b5 {[%clk 0:01:50]}  e4 {[%clk 0:01:17]} 29. c6 {[%clk 0:01:46]}  Bc8 {[%clk 0:01:14]} 30. Rd1 {[%clk 0:01:37]}  d3 {[%clk 0:01:12]} 31. Ke3 {[%clk 0:01:32]}  Kf6 {[%clk 0:01:10]} 32. fxe4 {[%clk 0:01:30]}  fxe4 {[%clk 0:01:03]} 33. a4 {[%clk 0:01:23]}  Ke5 {[%clk 0:00:58]} 34. a5 {[%clk 0:01:16]}  Kd6 {[%clk 0:00:44]} 35. Rf1 {[%clk 0:01:11]}  Kc5 {[%clk 0:00:42]} 36. Rc1 {[%clk 0:01:03]}  Kd6 {[%clk 0:00:15]} 37. b6 {[%clk 0:00:59]}  d2 {[%clk 0:00:09]} 38. Kxd2 {[%clk 0:00:56]}  e3+ {[%clk 0:00:09]} 39. Ke1 {[%clk 0:00:55]}  axb6 {[%clk 0:00:08]} 40. axb6 {[%clk 0:00:55]}  Re7 {[%clk 0:00:06]} 41. b7 {[%clk 0:00:52]}  Bxb7 {[%clk 0:00:05]} 42. cxb7 {[%clk 0:00:52]}  Rxb7 {[%clk 0:00:06]} 43. Rc2 {[%clk 0:00:48]}  Ke5 {[%clk 0:00:06]} 44. Ke2 {[%clk 0:00:46]}  Kd4 {[%clk 0:00:06]} 45. Bd3 {[%clk 0:00:45]}  Rf7 {[%clk 0:00:06]} 46. Rc4+ {[%clk 0:00:44]}  Ke5 {[%clk 0:00:05]} 47. Kxe3 {[%clk 0:00:44]}  Ra7 {[%clk 0:00:05]} 48. Re4+ {[%clk 0:00:44]}  Kf6 {[%clk 0:00:05]} 49. Rf4+ {[%clk 0:00:42]}  Kg5 {[%clk 0:00:05]} 50. h4+ {[%clk 0:00:39]}  Kh6 {[%clk 0:00:04]} 51. g3 {[%clk 0:00:35]}  Ra3 {[%clk 0:00:04]} 52. Rd4 {[%clk 0:00:34]}  Kh5 {[%clk 0:00:03]} 53. Kf4 {[%clk 0:00:32]}  Kh6 {[%clk 0:00:02]} 54. Rd7 {[%clk 0:00:30]}  Ra4+ {[%clk 0:00:02]} 55. Be4 {[%clk 0:00:29]}  Rb4 {[%clk 0:00:00]} 56. g4 {[%clk 0:00:25]} 1-0


[Site "https://www.chess.com"]

[Event "Titled Tuesday Blitz July 25 Early 2023"]
[White "Yashmetov, Mikhail"]
[Black "Thiel, Thomas"]
[WhiteFideId "24198900"]
[BlackFideId "4615964"]
[WhiteElo "2439"]
[BlackElo "2278"]
[Result "1-0"]
[Round "10"]
[TimeControl "180+2"]
[Date "2023.07.25"]
[WhiteClock "0:00:36"]
[BlackClock "0:00:54"]
[Board "122"]

1. d4 {[%clk 0:03:00]}  d5 {[%clk 0:02:59]} 2. c4 {[%clk 0:03:01]}  dxc4 {[%clk 0:03:00]} 3. Nf3 {[%clk 0:03:00]}  Nf6 {[%clk 0:02:58]} 4. e3 {[%clk 0:03:01]}  Bg4 {[%clk 0:02:57]} 5. Bxc4 {[%clk 0:03:01]}  e6 {[%clk 0:02:58]} 6. Nc3 {[%clk 0:02:59]}  Nc6 {[%clk 0:02:55]} 7. O-O {[%clk 0:02:56]}  Bd6 {[%clk 0:02:55]} 8. h3 {[%clk 0:02:48]}  Bh5 {[%clk 0:02:49]} 9. Be2 {[%clk 0:02:48]}  O-O {[%clk 0:02:47]} 10. e4 {[%clk 0:02:46]}  Bxf3 {[%clk 0:02:43]} 11. Bxf3 {[%clk 0:02:46]}  Nxd4 {[%clk 0:02:43]} 12. e5 {[%clk 0:02:35]}  Nxf3+ {[%clk 0:02:38]} 13. Qxf3 {[%clk 0:02:35]}  Bxe5 {[%clk 0:02:38]} 14. Qxb7 {[%clk 0:02:36]}  Bxc3 {[%clk 0:02:32]} 15. bxc3 {[%clk 0:02:35]}  Nd5 {[%clk 0:02:32]} 16. Ba3 {[%clk 0:02:33]}  Re8 {[%clk 0:02:26]} 17. Rfd1 {[%clk 0:02:29]}  Qc8 {[%clk 0:02:20]} 18. Qc6 {[%clk 0:02:11]}  Rb8 {[%clk 0:02:12]} 19. c4 {[%clk 0:02:09]}  Rb6 {[%clk 0:02:09]} 20. Qc5 {[%clk 0:02:06]}  Nf6 {[%clk 0:01:42]} 21. Rd3 {[%clk 0:01:55]}  e5 {[%clk 0:01:35]} 22. Rad1 {[%clk 0:01:50]}  e4 {[%clk 0:01:34]} 23. Rd4 {[%clk 0:01:46]}  Qa6 {[%clk 0:01:33]} 24. Rd8 {[%clk 0:01:37]}  Rb8 {[%clk 0:01:23]} 25. Rxb8 {[%clk 0:01:31]}  Rxb8 {[%clk 0:01:21]} 26. Qxc7 {[%clk 0:01:27]}  Qc8 {[%clk 0:01:13]} 27. Qxc8+ {[%clk 0:00:53]}  Rxc8 {[%clk 0:01:14]} 28. c5 {[%clk 0:00:54]}  h6 {[%clk 0:01:09]} 29. Rd6 {[%clk 0:00:47]}  Rc7 {[%clk 0:00:56]} 30. Kf1 {[%clk 0:00:41]}  Kh7 {[%clk 0:00:55]} 31. Ke2 {[%clk 0:00:41]}  Kg6 {[%clk 0:00:55]} 32. Ke3 {[%clk 0:00:41]}  Kf5 {[%clk 0:00:55]} 33. g4+ {[%clk 0:00:37]}  Ke5 {[%clk 0:00:54]} 34. Bb2# {[%clk 0:00:36]} 1-0


[Site "https://www.chess.com"]

[Event "Titled Tuesday Blitz July 25 Early 2023"]
[White "Rakitic2010"]
[Black "Smietanska, Wiktoria"]
[BlackFideId "21869359"]
[WhiteElo "2435"]
[BlackElo "2256"]
[Result "1-0"]
[Round "10"]
[TimeControl "180+2"]
[Date "2023.07.25"]
[WhiteClock "0:01:26"]
[BlackClock "0:00:04"]
[Board "124"]

1. e4 {[%clk 0:03:00]}  c5 {[%clk 0:02:57]} 2. Nf3 {[%clk 0:03:00]}  d6 {[%clk 0:02:57]} 3. c3 {[%clk 0:03:00]}  Nf6 {[%clk 0:02:57]} 4. h3 {[%clk 0:03:00]}  Nc6 {[%clk 0:02:55]} 5. d4 {[%clk 0:02:58]}  cxd4 {[%clk 0:02:54]} 6. cxd4 {[%clk 0:02:59]}  g6 {[%clk 0:02:54]} 7. Nc3 {[%clk 0:02:58]}  Bg7 {[%clk 0:02:55]} 8. Be2 {[%clk 0:02:58]}  O-O {[%clk 0:02:54]} 9. O-O {[%clk 0:02:58]}  a6 {[%clk 0:02:50]} 10. Be3 {[%clk 0:02:58]}  b5 {[%clk 0:02:50]} 11. Rc1 {[%clk 0:02:55]}  Bb7 {[%clk 0:02:49]} 12. d5 {[%clk 0:02:56]}  Nb8 {[%clk 0:02:41]} 13. b4 {[%clk 0:02:49]}  Nbd7 {[%clk 0:02:41]} 14. a3 {[%clk 0:02:49]}  Rc8 {[%clk 0:02:36]} 15. Nd4 {[%clk 0:02:49]}  Nb6 {[%clk 0:02:34]} 16. f3 {[%clk 0:02:44]}  Nc4 {[%clk 0:02:33]} 17. Bxc4 {[%clk 0:02:44]}  Rxc4 {[%clk 0:02:32]} 18. Qd3 {[%clk 0:02:43]}  Nd7 {[%clk 0:02:24]} 19. Rc2 {[%clk 0:02:35]}  Ne5 {[%clk 0:02:14]} 20. Qe2 {[%clk 0:02:32]}  Qc7 {[%clk 0:02:09]} 21. Rfc1 {[%clk 0:02:29]}  Rc8 {[%clk 0:01:56]} 22. f4 {[%clk 0:02:14]}  Nd7 {[%clk 0:01:40]} 23. Qd3 {[%clk 0:02:12]}  Nb6 {[%clk 0:01:25]} 24. Kh1 {[%clk 0:01:56]}  Qd8 {[%clk 0:01:03]} 25. Kh2 {[%clk 0:01:55]}  R8c7 {[%clk 0:00:47]} 26. Ne6 {[%clk 0:01:39]}  fxe6 {[%clk 0:00:44]} 27. Bxb6 {[%clk 0:01:38]}  Rxc3 {[%clk 0:00:34]} 28. Bxc7 {[%clk 0:01:38]}  Rxd3 {[%clk 0:00:28]} 29. Bxd8 {[%clk 0:01:37]}  exd5 {[%clk 0:00:23]} 30. Rc7 {[%clk 0:01:36]}  Ba8 {[%clk 0:00:20]} 31. Ra7 {[%clk 0:01:36]}  dxe4 {[%clk 0:00:16]} 32. Rxa8 {[%clk 0:01:35]}  Kf7 {[%clk 0:00:14]} 33. Ra7 {[%clk 0:01:35]}  Bf6 {[%clk 0:00:11]} 34. Bxe7 {[%clk 0:01:33]}  Bxe7 {[%clk 0:00:11]} 35. Rcc7 {[%clk 0:01:34]}  e3 {[%clk 0:00:09]} 36. Rxe7+ {[%clk 0:01:34]}  Kf6 {[%clk 0:00:10]} 37. g4 {[%clk 0:01:33]}  d5 {[%clk 0:00:08]} 38. Re5 {[%clk 0:01:25]}  h6 {[%clk 0:00:05]} 39. Rae7 {[%clk 0:01:25]}  d4 {[%clk 0:00:04]} 40. R5e6# {[%clk 0:01:26]} 1-0


[Site "https://www.chess.com"]

[Event "Titled Tuesday Blitz July 25 Early 2023"]
[White "Bendayan Claros, Aaron"]
[Black "Francisco_Ferrari"]
[WhiteFideId "3803392"]
[WhiteElo "2434"]
[BlackElo "2207"]
[Result "1-0"]
[Round "10"]
[TimeControl "180+2"]
[Date "2023.07.25"]
[WhiteClock "0:00:18"]
[BlackClock "0:00:05"]
[Board "125"]

1. d4 {[%clk 0:02:47]}  d5 {[%clk 0:02:59]} 2. Nf3 {[%clk 0:02:47]}  Nf6 {[%clk 0:02:59]} 3. e3 {[%clk 0:02:46]}  e6 {[%clk 0:03:00]} 4. Bd3 {[%clk 0:02:46]}  Bd6 {[%clk 0:02:59]} 5. Nbd2 {[%clk 0:02:45]}  c5 {[%clk 0:02:57]} 6. b3 {[%clk 0:02:45]}  Nc6 {[%clk 0:02:48]} 7. Bb2 {[%clk 0:02:44]}  Qc7 {[%clk 0:02:45]} 8. a3 {[%clk 0:02:44]}  cxd4 {[%clk 0:02:22]} 9. exd4 {[%clk 0:02:44]}  a6 {[%clk 0:02:22]} 10. O-O {[%clk 0:02:43]}  g5 {[%clk 0:02:22]} 11. Qe2 {[%clk 0:02:39]}  Bd7 {[%clk 0:01:54]} 12. Ne5 {[%clk 0:02:38]}  O-O-O {[%clk 0:01:50]} 13. Nxf7 {[%clk 0:02:31]}  Bxh2+ {[%clk 0:01:49]} 14. Kh1 {[%clk 0:02:31]}  h5 {[%clk 0:01:41]} 15. Nxd8 {[%clk 0:02:30]}  Nxd8 {[%clk 0:01:25]} 16. Nf3 {[%clk 0:02:28]}  Ng4 {[%clk 0:01:17]} 17. c4 {[%clk 0:02:21]}  Rf8 {[%clk 0:00:56]} 18. cxd5 {[%clk 0:02:06]}  Kb8 {[%clk 0:00:35]} 19. Rac1 {[%clk 0:01:57]}  Qd6 {[%clk 0:00:35]} 20. Ne5 {[%clk 0:01:52]}  exd5 {[%clk 0:00:18]} 21. f3 {[%clk 0:01:42]}  Bg3 {[%clk 0:00:14]} 22. Kg1 {[%clk 0:01:09]}  Nh2 {[%clk 0:00:10]} 23. Rfe1 {[%clk 0:01:03]}  g4 {[%clk 0:00:11]} 24. Bc3 {[%clk 0:00:51]}  gxf3 {[%clk 0:00:10]} 25. Nxf3 {[%clk 0:00:48]}  Bg4 {[%clk 0:00:07]} 26. Bb4 {[%clk 0:00:47]}  Qb6 {[%clk 0:00:05]} 27. Bc5 {[%clk 0:00:43]}  Qf6 {[%clk 0:00:04]} 28. Bxf8 {[%clk 0:00:39]}  Bxf3 {[%clk 0:00:03]} 29. gxf3 {[%clk 0:00:38]}  Qxd4+ {[%clk 0:00:04]} 30. Kg2 {[%clk 0:00:37]}  Bxe1 {[%clk 0:00:04]} 31. Rxe1 {[%clk 0:00:30]}  Qh4 {[%clk 0:00:04]} 32. Qe5+ {[%clk 0:00:26]}  Ka8 {[%clk 0:00:04]} 33. Qg3 {[%clk 0:00:23]}  Qd4 {[%clk 0:00:03]} 34. Kxh2 {[%clk 0:00:22]}  Qxd3 {[%clk 0:00:03]} 35. Re8 {[%clk 0:00:19]}  Qd2+ {[%clk 0:00:04]} 36. Kh3 {[%clk 0:00:18]}  Ka7 {[%clk 0:00:04]} 37. Rxd8 {[%clk 0:00:18]}  Qd3 {[%clk 0:00:05]} 38. Bc5+ {[%clk 0:00:18]}  b6 {[%clk 0:00:05]} 39. Qc7# {[%clk 0:00:18]} 1-0


[Site "https://www.chess.com"]